Cogmind - Beta 13 @@@ ROGUE MODE // 2024.04.08 @ 02:14:18 Player: JanPolak Result: Destroyed self with Grenade Launcher Performance ------------- Evolutions (0) 0 Regions Visited (2) 400 Robots Destroyed (24) 120 Value Destroyed (488) 488 Prototype IDs (2) 40 Alien Tech Used (0) 0 Bonus (0) 0 TOTAL SCORE: 1048 Bonus ------- None Cogmind --------- Core Integrity 0/250 Matter 242/300 Energy 125/125 System Corruption 1% Temperature Cool (0) Movement Walking (120) Location -10/Mines Parts ------- > --- POWER (1) -------- Light Ion Engine > --- PROPULSION (2) --- Aluminum Leg Aluminum Leg > --- UTILITY (2) ------ Medium Storage Unit Signal Interpreter > --- WEAPON (2) ------- Light Assault Rifle Grenade Launcher > --- INVENTORY (10) --- Light Ion Engine Aluminum Leg Aluminum Leg Aluminum Leg Heat Sink Heat Sink Large Storage Unit Small Laser Grenade Launcher Hammer Peak State ------------ > --- POWER ------------ Light Ion Engine > --- PROPULSION ------- Aluminum Leg Aluminum Leg > --- UTILITY ---------- Medium Storage Unit Signal Interpreter > --- WEAPON ----------- Light Assault Rifle Hammer > --- INVENTORY -------- Light Ion Engine Aluminum Leg Aluminum Leg Aluminum Leg Heat Sink Heat Sink Large Storage Unit Small Laser Grenade Launcher Grenade Launcher [Rating: 8] Favorites ----------- Power Light Ion Engine Engine Light Ion Engine Propulsion Aluminum Leg Leg Aluminum Leg Utility Small Storage Unit Device Heat Sink Storage Small Storage Unit Processor Signal Interpreter Weapon Light Assault Rifle Energy Gun Small Laser Energy Cannon Beam Cannon Ballistic Gun Light Assault Rifle Launcher Grenade Launcher Impact Weapon Hammer Build | -11 -10 -10 ------- Run | Yrd Mat Min Slots Evolved . | . . . Power . | . . . Propulsion . | . . . Utility . | . . . Weapon . | . . . Parts Attached 29 | 6 20 3 Power 4 | 1 3 . Engine 4 | 1 3 . Core . | . . . Reactor . | . . . Propulsion 8 | 2 6 . Treads . | . . . Leg 8 | 2 6 . Wheel . | . . . Hover . | . . . Flight . | . . . Utility 5 | 1 4 . Device 2 | . 2 . Storage 2 | 1 1 . Processor 1 | . 1 . Hackware . | . . . Protection . | . . . Artifact . | . . . Weapon 12 | 2 7 3 Energy Gun 2 | 1 1 . Energy Cannon 1 | . 1 . Ballistic Gun 4 | 1 3 . Ballistic Cannon . | . . . Launcher 2 | . . 2 Special Weapon . | . . . Impact Weapon 3 | . 2 1 Slashing Weapon . | . . . Piercing Weapon . | . . . Special Melee Weapon . | . . . Unidentified Prototypes . | . . . Parts Lost 7 | . 7 . Power 2 | . 2 . Propulsion 3 | . 3 . Utility 1 | . 1 . Weapon 1 | . 1 . Highest Loss Streak 3 | . 3 . To Critical Strikes . | . . . Average Slot Usage (%) 95 | . 94 100 Engine 13 | . 13 14 Leg 26 | . 26 28 Device 4 | . 4 . Storage 14 | . 14 14 Processor 6 | . 5 14 Energy Gun 2 | . 3 . Ballistic Gun 13 | . 13 14 Impact Weapon 10 | . 9 13 Naked Turns . | . . . Heaviest Build 17 | 10 16 17 Greatest Support 20 | 20 20 20 Greatest Overweight (x) 3 | 2 3 . Average Overweight (x) . | . . . Largest Inventory Capacity 10 | 8 10 10 Average Capacity 8 | 7 8 10 Most Carried 10 | 6 8 10 Average Carried 7 | 3 7 8 Final Capacity 10 | 8 10 10 Final Carried 10 | 4 8 10 Class Distribution -------------------- 68% | Scavenger-Mutant 31% | Mutant Dominant Class ---------------- Scavenger-Mutant | -10/Materials Scavenger-Mutant | -10/Mines Resources | -11 -10 -10 ----------- Run | Yrd Mat Min Matter Collected 546 | 218 299 29 Remotely . | . . . Salvage Created 596 | . 574 22 Parts 45 | . 36 9 Haulers Intercepted 1 | . 1 . Recyclers Shooed . | . . . Parts Field Recycled . | . . . Retrieved Matter . | . . . Parts Self-Destructed . | . . . Prevented . | . . . Kills | -11 -10 -10 ------- Run | Yrd Mat Min Combat Hostiles Destroyed 20 | . 15 5 Melee 3 | . 3 . Guns 7 | . 7 . Cannons 4 | . 4 . AOE 5 | . . 5 Classes Destroyed 5 | . 5 . Builder 1 | . 1 . Hauler 1 | . 1 . Watcher 2 | . 2 . Swarmer 11 | . 6 5 Grunt 9 | . 9 . Best Kill Streak 4 | . 4 3 Combat Bots Only 4 | . 4 3 Max Kills in Single Turn 2 | . 1 2 Gunslinging . | . . . Exploded 2 | . . 2 Melee 1 | . 1 . Uniques/NPCs Destroyed . | . . . Combat | -11 -10 -10 -------- Run | Yrd Mat Min Hostile Shots Fired 159 | . 146 13 Missed 40 | . 37 3 Damage Taken 1196 | . 1095 101 Core 251 | . 213 38 Absorbed by Shields . | . . . Regen/Repaired (Parts) 3 | . 3 . Core Remaining (%) 100 | 100 . . Volleys Fired 63 | . 59 4 Largest 2 | . 2 1 Hottest 80 | . 80 30 Shots Fired 95 | . 91 4 Gun 73 | . 73 . Cannon 18 | . 18 . Launcher 4 | . . 4 Special . | . . . Kinetic 55 | . 55 . Thermal 36 | . 36 . Explosive 4 | . . 4 Electromagnetic . | . . . Robot Hit Streak 8 | . 8 4 Robot Miss Streak 6 | . 6 . Penetration Max . | . . . Secondary Targets 1 | . 1 . Max Gunslinging Chain 1 | . 1 . Shots Hit Robots 64 | . 62 2 Core Hits 28 | . 23 5 Critical Kills . | . . . Critical Parts Destroyed 2 | . 2 . Critical Strikes 2 | . 2 . Smash 2 | . 2 . Melee Attacks 23 | . 23 . Impact 23 | . 23 . Slashing . | . . . Piercing . | . . . Sneak Attacks 2 | . 2 . Combat Hostiles . | . . . Follow-up Attacks . | . . . Damage Inflicted 1372 | . 1054 318 Guns 409 | . 409 . Cannons 228 | . 228 . Explosions 318 | . . 318 Melee 417 | . 417 . Ramming . | . . . Kinetic 268 | . 268 . Thermal 369 | . 369 . Explosive 318 | . . 318 Electromagnetic . | . . . Impact 417 | . 417 . Slashing . | . . . Piercing . | . . . Highest Corruption 1 | . 1 1 Average Corruption 1 | . 1 1 Corruption Purged . | . . . Corruption Blocked . | . . . Effects 9 | . 4 5 Message Errors 3 | . 1 2 Matter Fused 1 | . . 1 Heat Flow Errors 1 | . 1 . Energy Discharges 1 | . . 1 Data Loss (major) 2 | . 1 1 Misfires 1 | . 1 . Overload Shots . | . . . Overflow Damage 92 | . 87 5 Projectiles 9 | . 9 . Explosions 5 | . . 5 Melee 78 | . 78 . Knockbacks . | . . . Impact . | . . . Kinetic . | . . . Secondary . | . . . Self-Inflicted Damage 26 | . . 26 Shots 3 | . . 3 Rammed . | . . . Targets Rammed . | . . . Kicked . | . . . Crushed . | . . . Highest Temperature 227 | . 227 . Average Temperature 76 | . 76 . Received Heat Transfer 273 | . 273 . Siege Activations . | . . . Robots Corrupted . | . . . Combat Hostiles . | . . . Parts Fried 3 | . 3 . Impact Corruptions 5 | . 5 . Robots Melted . | . . . Combat Hostiles . | . . . Parts Melted . | . . . Heat Transferred 806 | . 806 . Parts Sabotaged . | . . . Parts Stolen . | . . . Parts Stripped . | . . . Power Chain Reactions . | . . . Alert | -11 -10 -10 ------- Run | Yrd Mat Min Peak Influence 230 | . 230 114 Initial . | . . . Average 64 | . 76 16 Maximum Alert Level 1 | . 1 . Low Security (%) 93 | 100 91 100 Level 1 6 | . 8 . Level 2 . | . . . Level 3 . | . . . Level 4 . | . . . Level 5 . | . . . High Security . | . . . Max Security . | . . . Squads Dispatched 2 | . 2 . Investigation 2 | . 2 . Extermination . | . . . Reinforcement . | . . . Assault . | . . . Garrison . | . . . Intercept . | . . . Searches Triggered . | . . . Construction Impeded . | . . . Haulers Reinforced . | . . . Active Scanning Responses . | . . . Cargo Convoy Interrupts . | . . . Stealth | -11 -10 -10 --------- Run | Yrd Mat Min Distress Signals 1 | . 1 . Communications Jammed . | . . . Distress Signals . | . . . Times Spotted 27 | . 21 6 Peak Tracking Total 4 | . 4 3 Tactical Retreats . | . . . Traps | -11 -10 -10 ------- Run | Yrd Mat Min Traps Triggered 4 | . 4 . Indirectly . | . . . Trap Hack Attempts . | . . . Triggered . | . . . Disarmed . | . . . Reprogrammed . | . . . Reused . | . . . Traps Extracted . | . . . Installed . | . . . Triggered . | . . . Machines | -11 -10 -10 ---------- Run | Yrd Mat Min Machines Disabled 2 | . 1 1 Max in Single Turn 1 | . 1 1 Machines Repaired . | . . . Machines Dismantled . | . . . Machines Sabotaged . | . . . Overloaded Fab Kills . | . . . Hacking | -11 -10 -10 --------- Run | Yrd Mat Min Machines Accessed 8 | . 8 . Terminals 6 | . 6 . Fabricators . | . . . Repair Stations 1 | . 1 . Recycling Units 1 | . 1 . Scanalyzers . | . . . Garrison Access . | . . . Total Hacks 25 | . 25 . Successful 11 | . 11 . Failed 14 | . 14 . Catastrophic 1 | . 1 . Database Lockouts . | . . . Manual . | . . . Terminals 18 | . 18 . Fabricators . | . . . Repair Stations 3 | . 3 . Recycling Units 4 | . 4 . Scanalyzers . | . . . Garrison Access . | . . . Terminal Hacks 7 | . 7 . Record 1 | . 1 . Prototype ID Bank 1 | . 1 . Terminal Index 1 | . 1 . Repair Station Index 1 | . 1 . Unreport Threat 1 | . 1 . Dispatch Records 1 | . 1 . Hauler Manifests 1 | . 1 . Fabricator Hacks . | . . . Repair Station Hacks 2 | . 2 . Scan Component 1 | . 1 . Repair 1 | . 1 . Recycling Unit Hacks 2 | . 2 . Process 1 | . 1 . Report Inventory 1 | . 1 . Scanalyzer . | . . . Garrison Access Hacks . | . . . Unauthorized Hacks . | . . . Terminals . | . . . Fabricators . | . . . Repair Stations . | . . . Recycling Units . | . . . Scanalyzers . | . . . Garrison Access . | . . . Data Cores Recovered . | . . . Used . | . . . Hacking Detections 5 | . 5 . Full Trace Events 2 | . 2 . Feedback Events 1 | . 1 . Corruption 1 | . 1 . Feedback Blocked . | . . . Robot Schematics Acquired . | . . . Robots Built . | . . . Authchips . | . . . Time . | . . . Total Robot Build Rating . | . . . Part Schematics Acquired . | . . . Parts Built . | . . . Authchips . | . . . Time . | . . . Total Part Build Rating . | . . . Parts Repaired 1 | . 1 . Time 36 | . 36 . Parts Recycled . | . . . Recycled Matter . | . . . Retrieved Matter . | . . . Retrieved Components . | . . . Parts Scanalyzed . | . . . Part Schematics Acquired . | . . . Parts Damaged . | . . . Bothacking | -11 -10 -10 ------------ Run | Yrd Mat Min Used RIF Installer . | . . . Robots Hacked . | . . . Non-combat . | . . . Combat . | . . . Robot Hacks Applied . | . . . Relay Couplers Released . | . . . Fabnet Peak Effective % . | . . . Robots Rewired . | . . . Allies Hacked . | . . . Hacks Repelled . | . . . Allies | -11 -10 -10 -------- Run | Yrd Mat Min Total Allies . | . . . Largest Group . | . . . Highest-Rated Group . | . . . Highest-Rated Ally . | . . . Total Orders . | . . . Ally Attacks . | . . . Total Damage . | . . . Kills . | . . . Allies Corrupted . | . . . Allies Melted . | . . . Intel | -11 -10 -10 ------- Run | Yrd Mat Min Robot Analysis Total . | . . . Derelict Logs Recovered 2 | . . 2 Drone Launches . | . . . Drone Recoveries . | . . . Exploration | -11 -10 -10 ------------- Run | Yrd Mat Min Turns Passed 1822 | 65 1470 287 Spaces Moved 1249 | 41 981 227 Core 11 | 7 4 . Treads . | . . . Legs 1238 | 34 977 227 Wheels . | . . . Hover . | . . . Flight . | . . . Fastest Speed 50 | 50 120 120 Average Speed 120 | 119 120 120 Slowest Speed 200 | 150 200 120 Overloaded Moves . | . . . Propulsion Burnouts . | . . . Robots Hopped . | . . . Cave-ins Triggered . | . . . Exploration Rate (%) 46 | 5 99 36 Regions Visited 2 Branch Regions 1 Pre-discovered Areas 1 | . . 1 Known Exits Taken 1 | . 1 . Unknown Exits Taken 1 | 1 . . Scrap Searched 1 | . . 1 Spaces Dug . | . . . Terrain Destroyed 34 | . . 34 Melee . | . . . Projectile . | . . . AOE 34 | . . 34 Terrain Rammed . | . . . Walls Destroyed . | . . . Machines Disabled . | . . . Actions | -11 -10 -10 --------- Run | Yrd Mat Min Total 1445 | 57 1150 238 Wait 27 | 1 24 2 Move 1247 | 40 980 227 Hop . | . . . Pick Up 39 | 10 27 2 Fast Attach 2 | . 2 . Attach 15 | 6 9 . Detach 1 | . 1 . Swap 12 | . 9 3 Drop 16 | . 16 . Fire 63 | . 59 4 Melee 23 | . 23 . Ram . | . . . Kick . | . . . Crush . | . . . Escape Stasis . | . . . Rewire . | . . . Trap . | . . . Miscellaneous . | . . . Route ------- -11/Scrapyard -10/Materials (discovered 6 exits: *Mat x3 / *Min x2 / *Sub) -10/Mines (discovered 1 exit: *Mat) History --------- Turn | Location | Event 9 | -11/Scrapyard | Discovered new exit (range 16) 66 | -11/Scrapyard | Entered Materials 315 | -10/Materials | Build established: Mutant 380 | -10/Materials | Discovered new exit (range 15) 609 | -10/Materials | Core integrity fell below 50% 658 | -10/Materials | Core integrity fell below 20% 690 | -10/Materials | Lost 3 parts (1p1u1w) 825 | -10/Materials | Discovered new exit (range 6) 964 | -10/Materials | Build established: Scavenger-Mutant 980 | -10/Materials | Repaired Corrupted Signal Interpreter 1042 | -10/Materials | Discovered new exit (range 6) 1057 | -10/Materials | Identified exit to Mines 1250 | -10/Materials | Discovered new exit (range 12) 1271 | -10/Materials | Discovered new exit (range 10) 1280 | -10/Materials | Identified exit to Materials 1358 | -10/Materials | Identified exit to Subcaves 1437 | -10/Materials | Discovered exit to Materials (range 15) 1536 | -10/Materials | Entered Mines 1623 | -10/Mines | Learned Materials stockpile data 1623 | -10/Mines | Discovered exit to Materials (range 15) 1650 | -10/Mines | Learned Materials trap positions 1654 | -10/Mines | Learned location of Storage (-9) 1823 | -10/Mines | Destroyed self with Grenade Launcher Last Messages --------------- 01656_ UC-6HP(g) slips back into the shadows. 01707_ I6ONF GGBV 01770_ S-10 Pest destroyed. 01771_ K-01 Serf collects debris. 01772_ S-10 Pest destroyed. 01775_ K-01 Serf collects debris. 01775_ Acquired 10 matter. 01777_ R-06 Scavenger collects Lgt. Assault Rifle. 01778_ K-01 Serf collects debris. 01780_ Acquired 9 matter. 01781_ R-06 Scavenger collects Lgt. Ion Engine. 01792_ R-06 Scavenger collects Flight Unit. 01807_ Acquired Grenade Launcher. 01814_ System corrupted: Energy discharge (-37). 01821_ Destroyed Flight Unit. 01823_ S-10 Pest destroyed. 01823_ Laser Drill disabled. Map ----- +----------------------------------------------------+ | | | | | | | | | | | ???????????????????????????????????????? | | ???????????????????????????????????????? | | ???????????????????????????????????????? | | ???????????????????????????????????????? | | ?????????????????????????????#####?????? | | ????????????????????????? ?? #?????? | | ??????????###???????????? ??" #?????? | | ?????????## #??????????? """ #?????? | | ????????## #?????????? """ #?????? | | ????????? #????????# #?????? | | ??????????? ##??????# """ #?????? | | ???????????? #??????# """ #?????? | | ????????????? ##?????# """ #?????? | | ??????????????# ###???# #?????? | | ???????????????# ##??# s""" #?????? | | ??????????????## #??# """ #?????? | | ?????????????## #??# " " #?????? | | ????????????## ##??# #?????? | | ???????????## ##### ###?????? | | ??????????## *== #???????? | | ??????????# @ #???????? | | ??????????# ####### #???????? | | ?????????## ##?????## ###???????? | | ?????????# ##??????# #???????? | | ?????????# ! #???????# #???????? | | ?????????## [#???????# #???????? | | ??????????### ##??????# #???????? | | ????????????## ##?????# #???????? | | ?????????????#[ #?????# #???????? | | ?????????????## #?????#######???????? | | ??????????????## #???????????????????? | | ???????????????# ##??????????????????? | | ???????????????# ##?????????????????? | | ???????????????# #?????????????????? | | ???????????????# #?????????????????? | | ???????????????# #?????????????????? | | ???????????????# #?????????????????? | | ???????????????# #?????????????????? | | ???????????????# ##?????????????????? | | ???????????????# = ##???###??????????? | | ???????????????## #### ##?????????? | | ????????????????### ## #?????????? | | ??????????????????# #?????????? | | ??????????????????## ##?????????? | | ???????????????????# ##??????????? | +----------------------------------------------------+ Best States ------------- Heat Dissipation 35 Energy Generation 10 Energy Capacity 125 Matter Stores 300 Matter Capacity 300 Sight Range 16 Terrain Scan Density 10 Evasion (%) 55 Item Schematics ----------------- None Robot Schematics ------------------ None Fabricated ------------ Nothing Alien Tech Used ----------------- None Achievements -------------- Everything Is Under Control Challenges ------------ None Game ------ Seed FlightSwarmChainsword Manual? 0 Play Time 00:29:29 Cumulative 5.8 hours Start 2024.04.08 @ 01:44:00 End 2024.04.08 @ 02:14:18 Sessions 1 Manual Loads 0 Difficulty Rogue Special Mode None Game No. 4 Rogue 4 Adventurer 0 Explorer 0 Win Type - Total 0 Types 0/0/0/0/0/0/0/0/0 Lore% 3 Gallery% 8 Achievement% 6 Wizard Run 0 Options --------- Layout 2 ASCII 0 Keyboard 0 Movement Mouse Keybinds 0 Fullscreen 2 Font 48/Terminus Map View 50x44 Zoom Use 0% Tactical HUD 1 Map Filters NONE Filters NONE Steam 1 RUN: 18c4543c-7187-4994-8c36-17af5e8c590e